[Event "Kupreichik Memorial Rapid 2019"]
[Site "Minsk"]
[Date "2019.08.15"]
[Round "3.18"]
[White "Dvurechensky, Viacheslav"]
[Black "Agapov, Sergey"]
[Result "0-1"]
[ECO "D03"]
[WhiteElo "1840"]
[BlackElo "2265"]
[Annotator "NA"]
[PlyCount "114"]
[EventDate "2019.08.15"]
[EventType "swiss"]
[EventCountry "BLR"]
[SourceTitle "playchess.com"]
[Source "ChessBase"]
[SourceQuality "1"]
[TimeControl "900+10"]

1. d4 {[%emt 0:00:00]} Nf6 {[%emt 0:00:00]} 2. Nf3 {[%emt 0:00:00]} d5 {[%emt 0:00:00]} 3. Bg5 {[%emt 0:00:02]} Bf5 {[%emt 0:00:07]} 4. e3 {[%emt 0:00:51]} c6 5. c3 {[%emt 0:01:23]} Ne4 {[%emt 0:00:18]} 6. Bf4 {[%emt 0:00:03]} e6 {[%emt 0:00:12]} 7. Nbd2 {[%emt 0:00:12]} Nxd2 {[%emt 0:00:22]} 8. Qxd2 {[%emt 0:00:21]} Nd7 {[%emt 0:01:52]} 9. Bd3 {[%emt 0:00:02]} Bxd3 {[%emt 0:00:01]} 10. Qxd3 {[%emt 0:00:18]} Be7 {[%emt 0:00:06]} 11. O-O {[%emt 0:00:27]} O-O 12. Ne5 Nf6 {[%emt 0:00:36]} 13. h3 {[%emt 0:00:52]} c5 {[%emt 0:00:40]} 14. dxc5 {[%emt 0:01:27]} Bxc5 {[%emt 0:00:02]} 15. Qb5 {[%emt 0:00:20]} Qe7 {[%emt 0:00:02]} 16. Nd3 {[%emt 0:01:22]} Rfc8 {[%emt 0:01:24]} 17. Be5 {[%emt 0:01:20]} Ne4 {[%emt 0:01:35]} 18. Nxc5 {[%emt 0:01:19]} Rxc5 {[%emt 0:00:09]} 19. Qe2 {[%emt 0:00:08]} f6 {[%emt 0:00:14]} 20. Bh2 {[%emt 0:00:21]} b5 {[%emt 0:01:36]} 21. Rad1 {[%emt 0:00:49]} Rac8 {[%emt 0:00:08]} 22. f3 {[%emt 0:00:27]} Ng5 {[%emt 0:00:03]} 23. Rd2 {[%emt 0:01:33]} Qb7 {[%emt 0:00:20]} 24. Rfd1 {[%emt 0:00:47]} b4 {[%emt 0:00:08]} 25. cxb4 {[%emt 0:00:26]} Qxb4 {[%emt 0:00:02]} 26. Bf4 {[%emt 0:00:40]} Nf7 {[%emt 0:00:02]} 27. Qa6 {[%emt 0:00:30]} Qb6 {[%emt 0:01:13]} 28. Qxb6 {[%emt 0:00:20]} axb6 {[%emt 0:00:01]} 29. e4 {[%emt 0:00:17]} e5 {[%emt 0:00:02]} 30. Bg3 {[%emt 0:00:35]} d4 {[%emt 0:00:01]} 31. f4 {[%emt 0:00:24]} Kf8 {[%emt 0:00:22]} 32. fxe5 {[%emt 0:00:14]} fxe5 {[%emt 0:00:01]} 33. Rf2 {[%emt 0:00:20]} Ke8 {[%emt 0:00:14]} 34. Rd3 {[%emt 0:00:30]} Ra8 {[%emt 0:00:13]} 35. Rdf3 {[%emt 0:00:18]} Ra7 {[%emt 0:00:01]} 36. Rb3 {[%emt 0:00:13]} b5 {[%emt 0:00:01]} 37. a3 {[%emt 0:00:12]} Rd7 {[%emt 0:00:12]} 38. Rd3 {[%emt 0:00:23]} Ke7 {[%emt 0:00:02]} 39. Rf5 {[%emt 0:00:15]} Ke6 {[%emt 0:00:02]} 40. h4 {[%emt 0:00:22]} Nd6 {[%emt 0:00:06]} 41. Rf8 {[%emt 0:01:15]} Nxe4 {[%emt 0:00:02]} 42. Re8+ {[%emt 0:00:11]} Re7 {[%emt 0:00:05]} 43. Ra8 {[%emt 0:00:05]} Nf6 {[%emt 0:00:09]} 44. Ra6+ {[%emt 0:00:05]} Kd5 {[%emt 0:00:02]} 45. b4 {[%emt 0:00:08]} Rc6 {[%emt 0:00:11]} 46. Ra5 {[%emt 0:00:03]} Ng4 {[%emt 0:00:15]} 47. Rd1 {[%emt 0:00:08]} Rb7 {[%emt 0:00:03]} 48. Ra8 {[%emt 0:00:15]} Rc2 {[%emt 0:00:05]} 49. Rd8+ {[%emt 0:00:16]} Ke6 {[%emt 0:00:04]} 50. Re8+ {[%emt 0:00:09]} Kf7 {[%emt 0:00:02]} 51. Rd8 {[%emt 0:00:14]} Ne3 {[%emt 0:00:03]} 52. Rf1+ {[%emt 0:00:17]} Nxf1 {[%emt 0:00:01]} 53. Kxf1 {[%emt 0:00:01]} Re7 {[%emt 0:00:02]} 54. Rd5 {[%emt 0:00:06]} Kf6 {[%emt 0:00:02]} 55. Rxb5 {[%emt 0:00:05]} Kf5 {[%emt 0:00:17]} 56. Bf2 {[%emt 0:00:12]} Ke4 {[%emt 0:00:02]} 57. a4 {[%emt 0:00:21]} Rf7 {[%emt 0:00:02]} 0-1

[Event "Kupreichik Memorial Rapid 2019"]
[Site "Minsk"]
[Date "2019.08.15"]
[Round "3.20"]
[White "Shakhadanau, Henadzi"]
[Black "Kochetkov, German"]
[Result "0-1"]
[ECO "B30"]
[WhiteElo "1868"]
[BlackElo "2277"]
[Annotator "NA"]
[PlyCount "60"]
[EventDate "2019.08.15"]
[EventType "swiss"]
[EventCountry "BLR"]
[SourceTitle "playchess.com"]
[Source "ChessBase"]
[SourceQuality "1"]
[TimeControl "900+10"]

1. e4 {[%emt 0:00:00]} c5 {[%emt 0:00:00]} 2. Nf3 {[%emt 0:00:00]} Nc6 {[%emt 0:00:00]} 3. Bb5 {[%emt 0:00:00]} d6 {[%emt 0:00:00]} 4. d4 {[%emt 0:00:03]} cxd4 {[%emt 0:00:00]} 5. Qxd4 {[%emt 0:00:03]} Qa5+ {[%emt 0:00:00]} 6. Nc3 {[%emt 0:00:08]} Qxb5 {[%emt 0:00:00]} 7. Nxb5 {[%emt 0:00:03]} Nxd4 {[%emt 0:00:02]} 8. Nfxd4 {[%emt 0:01:04]} Kd8 {[%emt 0:00:02]} 9. Bg5 {[%emt 0:01:28]} Bd7 {[%emt 0:01:48]} 10. O-O-O {[%emt 0:01:41]} f6 {[%emt 0:00:05]} 11. Be3 {[%emt 0:05:41]} e5 {[%emt 0:00:03]} 12. Nxd6 {[%emt 0:02:31]} Bxd6 {[%emt 0:00:21]} 13. Nf5 {[%emt 0:00:16]} Bf8 {[%emt 0:00:17]} 14. Rd2 {[%emt 0:00:27]} Ke8 {[%emt 0:00:45]} 15. Rhd1 {[%emt 0:00:13]} Bc6 {[%emt 0:01:53]} 16. f3 {[%emt 0:02:00]} g6 {[%emt 0:00:27]} 17. Nd6+ {[%emt 0:00:15]} Bxd6 {[%emt 0:00:01]} 18. Rxd6 {[%emt 0:00:01]} Kf7 {[%emt 0:00:15]} 19. c4 {[%emt 0:00:13]} Ne7 {[%emt 0:00:14]} 20. b4 {[%emt 0:00:01]} Rhc8 {[%emt 0:00:01]} 21. Kb2 {[%emt 0:00:07]} Ba4 {[%emt 0:02:23]} 22. Rc1 {[%emt 0:00:02]} Rd8 {[%emt 0:01:30]} 23. Rxd8 {[%emt 0:00:28]} Rxd8 {[%emt 0:00:01]} 24. b5 {[%emt 0:00:07]} a6 {[%emt 0:00:09]} 25. Ka3 {[%emt 0:00:45]} axb5 {[%emt 0:00:03]} 26. Bb6 {[%emt 0:00:13]} Ra8 {[%emt 0:00:11]} 27. Kb4 {[%emt 0:00:07]} bxc4 {[%emt 0:00:11]} 28. Rxc4 {[%emt 0:00:13]} Bc6 {[%emt 0:00:01]} 29. Rc2 {[%emt 0:00:07]} f5 {[%emt 0:00:11]} 30. exf5 {[%emt 0:00:17]} Nd5+ {[%emt 0:00:11]} 0-1

[Event "Kupreichik Memorial Rapid 2019"]
[Site "Minsk"]
[Date "2019.08.15"]
[Round "3.21"]
[White "Tsaruk, Maksim"]
[Black "Tkachou, Viktar"]
[Result "1-0"]
[ECO "B01"]
[WhiteElo "2230"]
[BlackElo "1791"]
[Annotator "NA"]
[PlyCount "97"]
[EventDate "2019.08.15"]
[EventType "swiss"]
[EventCountry "BLR"]
[SourceTitle "playchess.com"]
[Source "ChessBase"]
[SourceQuality "1"]
[TimeControl "900+10"]

1. e4 {[%emt 0:00:00]} d5 {[%emt 0:00:00]} 2. exd5 {[%emt 0:00:00]} Qxd5 {[%emt 0:00:00]} 3. Nc3 {[%emt 0:00:00]} Qa5 {[%emt 0:00:00]} 4. Nf3 {[%emt 0:00:26]} Nf6 {[%emt 0:00:00]} 5. d4 {[%emt 0:00:10]} Bg4 {[%emt 0:00:05]} 6. h3 {[%emt 0:00:14]} Bh5 {[%emt 0:00:09]} 7. g4 {[%emt 0:00:40]} Bg6 {[%emt 0:00:02]} 8. Ne5 {[%emt 0:00:07]} Nbd7 {[%emt 0:00:43]} 9. Nc4 {[%emt 0:01:54]} Qa6 {[%emt 0:04:12]} 10. Bf4 {[%emt 0:01:10]} Qe6+ {[%emt 0:01:40]} 11. Ne3 {[%emt 0:00:13]} c6 {[%emt 0:00:40]} 12. Bc4 {[%emt 0:00:03]} Nd5 {[%emt 0:00:54]} 13. Ncxd5 {[%emt 0:05:16]} cxd5 {[%emt 0:00:05]} 14. Bxd5 {[%emt 0:00:01]} Qb6 {[%emt 0:01:28]} 15. Bb3 {[%emt 0:03:38]} e6 {[%emt 0:01:15]} 16. Qd2 {[%emt 0:00:01]} Be7 {[%emt 0:01:44]} 17. O-O-O {[%emt 0:03:13]} O-O {[%emt 0:00:54]} 18. h4 {[%emt 0:00:01]} Bd6 {[%emt 0:02:07]} 19. Nc4 {[%emt 0:00:23]} Bxf4 {[%emt 0:00:02]} 20. Qxf4 {[%emt 0:00:00]} Qc6 {[%emt 0:00:35]} 21. h5 {[%emt 0:00:28]} Bxc2 {[%emt 0:00:40]} 22. Kxc2 {[%emt 0:00:24]} b5 {[%emt 0:00:04]} 23. d5 {[%emt 0:00:12]} Qc5 {[%emt 0:00:25]} 24. Qd4 {[%emt 0:00:07]} bxc4 {[%emt 0:00:10]} 25. Bxc4 {[%emt 0:00:06]} exd5 {[%emt 0:00:11]} 26. Qxc5 {[%emt 0:00:03]} Nxc5 {[%emt 0:00:02]} 27. Bxd5 {[%emt 0:00:01]} Rad8 {[%emt 0:00:22]} 28. Kb1 {[%emt 0:00:01]} h6 {[%emt 0:00:18]} 29. Bf3 {[%emt 0:00:10]} Ne6 {[%emt 0:00:10]} 30. Rxd8 Rxd8 {[%emt 0:00:01]} 31. Rd1 {[%emt 0:00:06]} Rxd1+ 32. Bxd1 {[%emt 0:00:01]} Kf8 {[%emt 0:00:14]} 33. b4 {[%emt 0:00:04]} Ke7 {[%emt 0:00:05]} 34. Kb2 {[%emt 0:00:03]} Kd6 {[%emt 0:00:02]} 35. Kc3 {[%emt 0:00:11]} f6 {[%emt 0:00:04]} 36. Kc4 {[%emt 0:00:02]} Ng5 {[%emt 0:00:24]} 37. f3 {[%emt 0:00:20]} Ne6 {[%emt 0:00:01]} 38. a4 {[%emt 0:00:27]} Nf4 {[%emt 0:00:01]} 39. Bc2 {[%emt 0:00:12]} Nd5 {[%emt 0:00:14]} 40. Be4 {[%emt 0:00:03]} Ne3+ {[%emt 0:00:02]} 41. Kb5 {[%emt 0:00:03]} Kc7 {[%emt 0:00:03]} 42. Kc5 {[%emt 0:00:02]} Nd1 {[%emt 0:00:10]} 43. b5 {[%emt 0:00:13]} Nc3 {[%emt 0:00:16]} 44. Bc2 {[%emt 0:00:12]} Ne2 {[%emt 0:00:05]} 45. a5 {[%emt 0:00:03]} Ng1 {[%emt 0:00:11]} 46. Be4 {[%emt 0:00:01]} Ne2 {[%emt 0:00:02]} 47. b6+ {[%emt 0:00:06]} axb6+ {[%emt 0:00:07]} 48. axb6+ {[%emt 0:00:01]} Kb8 {[%emt 0:00:04]} 49. Kd6 {[%emt 0:00:04]} 1-0

[Event "Kupreichik Memorial Rapid 2019"]
[Site "Minsk"]
[Date "2019.08.15"]
[Round "3.22"]
[White "Zvereva, Margarita"]
[Black "Vashchilov, Sergey"]
[Result "0-1"]
[ECO "D05"]
[WhiteElo "1678"]
[BlackElo "2162"]
[Annotator "NA"]
[PlyCount "90"]
[EventDate "2019.08.15"]
[EventType "swiss"]
[EventCountry "BLR"]
[SourceTitle "playchess.com"]
[Source "ChessBase"]
[SourceQuality "1"]
[TimeControl "900+10"]

1. d4 {[%emt 0:00:00]} e6 {[%emt 0:00:00]} 2. Nf3 {[%emt 0:00:00]} d5 {[%emt 0:00:00]} 3. e3 {[%emt 0:00:00]} Nf6 {[%emt 0:00:00]} 4. Bd3 {[%emt 0:00:00]} Nbd7 {[%emt 0:00:57]} 5. O-O {[%emt 0:00:10]} b6 {[%emt 0:00:10]} 6. b3 {[%emt 0:00:06]} Bb7 {[%emt 0:00:12]} 7. Bb2 {[%emt 0:00:02]} Bd6 {[%emt 0:00:20]} 8. Nbd2 {[%emt 0:00:06]} O-O {[%emt 0:00:17]} 9. c4 {[%emt 0:00:21]} c5 {[%emt 0:00:47]} 10. Rc1 {[%emt 0:00:21]} Qe7 {[%emt 0:01:13]} 11. Qe2 {[%emt 0:00:46]} e5 {[%emt 0:01:54]} 12. dxe5 {[%emt 0:00:58]} Nxe5 {[%emt 0:00:04]} 13. Nxe5 {[%emt 0:00:06]} Bxe5 {[%emt 0:00:01]} 14. Bxe5 {[%emt 0:00:18]} Qxe5 {[%emt 0:00:02]} 15. Nf3 {[%emt 0:00:16]} Qh5 {[%emt 0:00:16]} 16. Rfd1 {[%emt 0:01:29]} Rfe8 {[%emt 0:00:38]} 17. cxd5 {[%emt 0:00:20]} Nxd5 {[%emt 0:00:28]} 18. Qf1 {[%emt 0:01:05]} Nb4 {[%emt 0:00:12]} 19. Be2 {[%emt 0:00:26]} Nxa2 {[%emt 0:00:21]} 20. Rc4 {[%emt 0:00:38]} Nb4 {[%emt 0:03:19]} 21. Nh4 {[%emt 0:01:47]} Qe5 {[%emt 0:00:56]} 22. Rg4 {[%emt 0:00:33]} Bd5 {[%emt 0:01:34]} 23. Bc4 {[%emt 0:00:32]} Rad8 {[%emt 0:00:51]} 24. Bxd5 {[%emt 0:00:59]} Rxd5 {[%emt 0:00:36]} 25. e4 {[%emt 0:02:34]} Rxd1 {[%emt 0:00:43]} 26. Qxd1 {[%emt 0:00:03]} Qd4 {[%emt 0:00:27]} 27. Qb1 {[%emt 0:02:29]} Rd8 {[%emt 0:01:10]} 28. h3 {[%emt 0:01:10]} Qd1+ {[%emt 0:00:31]} 29. Qxd1 {[%emt 0:00:02]} Rxd1+ {[%emt 0:00:02]} 30. Kh2 {[%emt 0:00:02]} Kf8 {[%emt 0:00:46]} 31. Nf5 {[%emt 0:00:24]} g6 {[%emt 0:00:18]} 32. Nh6 {[%emt 0:00:19]} Nd3 {[%emt 0:00:04]} 33. f3 {[%emt 0:01:23]} b5 {[%emt 0:00:42]} 34. Rg5 {[%emt 0:00:12]} c4 {[%emt 0:00:22]} 35. Rxb5 {[%emt 0:00:22]} c3 {[%emt 0:00:02]} 36. Rb8+ {[%emt 0:00:18]} Kg7 {[%emt 0:00:02]} 37. Rc8 {[%emt 0:00:08]} Kxh6 {[%emt 0:00:12]} 38. Rxc3 {[%emt 0:00:02]} Kg7 {[%emt 0:00:21]} 39. Rc7 {[%emt 0:00:06]} a5 {[%emt 0:00:16]} 40. Ra7 {[%emt 0:00:15]} Ra1 {[%emt 0:00:03]} 41. Kg3 {[%emt 0:00:16]} Ra3 {[%emt 0:00:03]} 42. e5 {[%emt 0:00:21]} Nxe5 {[%emt 0:00:04]} 43. Kf4 {[%emt 0:00:09]} Nd3+ {[%emt 0:00:07]} 44. Ke4 {[%emt 0:00:03]} Nc5+ {[%emt 0:00:13]} 45. Kd5 {[%emt 0:00:03]} Nxb3 {[%emt 0:00:03]} 0-1

[Event "Kupreichik Memorial Rapid 2019"]
[Site "Minsk"]
[Date "2019.08.15"]
[Round "3.23"]
[White "Kolosovskaya, Olga"]
[Black "Kalinin, Dmitry"]
[Result "1-0"]
[ECO "E06"]
[WhiteElo "1719"]
[BlackElo "2119"]
[Annotator "NA"]
[PlyCount "96"]
[EventDate "2019.08.15"]
[EventType "swiss"]
[EventCountry "BLR"]
[SourceTitle "playchess.com"]
[Source "ChessBase"]
[SourceQuality "1"]
[TimeControl "900+10"]

1. d4 {[%emt 0:00:00]} Nf6 {[%emt 0:00:00]} 2. c4 {[%emt 0:00:00]} e6 {[%emt 0:00:02]} 3. g3 {[%emt 0:00:00]} d5 {[%emt 0:00:12]} 4. Nf3 {[%emt 0:00:00]} Be7 {[%emt 0:00:03]} 5. Bg2 {[%emt 0:00:01]} O-O {[%emt 0:00:29]} 6. O-O {[%emt 0:00:02]} Nc6 {[%emt 0:00:01]} 7. b3 {[%emt 0:00:16]} a6 {[%emt 0:00:58]} 8. Nc3 {[%emt 0:00:12]} Rb8 {[%emt 0:00:15]} 9. e3 {[%emt 0:00:17]} b5 {[%emt 0:00:13]} 10. cxd5 {[%emt 0:00:20]} exd5 {[%emt 0:00:04]} 11. Bb2 {[%emt 0:00:38]} Bd6 {[%emt 0:01:13]} 12. Rc1 {[%emt 0:00:06]} Ne7 {[%emt 0:00:39]} 13. Nd2 {[%emt 0:04:19]} Re8 {[%emt 0:04:34]} 14. e4 {[%emt 0:01:02]} dxe4 {[%emt 0:00:02]} 15. Ndxe4 {[%emt 0:00:11]} Nxe4 {[%emt 0:01:56]} 16. Nxe4 {[%emt 0:00:03]} Bb7 {[%emt 0:00:27]} 17. Nc5 {[%emt 0:03:07]} Bxg2 {[%emt 0:01:12]} 18. Kxg2 {[%emt 0:00:02]} Nd5 {[%emt 0:00:14]} 19. Qf3 {[%emt 0:01:29]} Nb6 {[%emt 0:00:42]} 20. Nxa6 {[%emt 0:01:40]} Ra8 {[%emt 0:00:13]} 21. Qb7 {[%emt 0:00:10]} Qc8 {[%emt 0:00:32]} 22. Nc5 {[%emt 0:01:08]} Rxa2 {[%emt 0:00:05]} 23. Qxc8 {[%emt 0:00:14]} Rxc8 {[%emt 0:00:11]} 24. Nd3 {[%emt 0:00:37]} Nd5 {[%emt 0:00:59]} 25. Ra1 {[%emt 0:00:30]} Rxa1 {[%emt 0:01:00]} 26. Rxa1 {[%emt 0:00:02]} Kf8 {[%emt 0:00:16]} 27. Ra5 {[%emt 0:00:03]} Rb8 {[%emt 0:00:15]} 28. Kf3 {[%emt 0:02:12]} Ke7 {[%emt 0:00:09]} 29. Ra1 {[%emt 0:00:11]} Kd7 {[%emt 0:00:46]} 30. Ra5 {[%emt 0:00:08]} Kc6 {[%emt 0:00:31]} 31. Ra1 {[%emt 0:00:03]} Kb6 {[%emt 0:00:25]} 32. Rc1 {[%emt 0:00:23]} Ra8 {[%emt 0:00:12]} 33. Nc5 {[%emt 0:00:02]} Ra2 {[%emt 0:00:12]} 34. Nd3 {[%emt 0:00:09]} c6 {[%emt 0:00:16]} 35. Ra1 {[%emt 0:00:02]} Rxa1 {[%emt 0:00:02]} 36. Bxa1 {[%emt 0:00:01]} Ka5 {[%emt 0:00:12]} 37. h4 {[%emt 0:00:08]} Kb6 {[%emt 0:00:42]} 38. Bb2 {[%emt 0:00:17]} Nf6 {[%emt 0:00:29]} 39. Bc1 {[%emt 0:00:05]} c5 {[%emt 0:00:16]} 40. dxc5+ {[%emt 0:00:04]} Bxc5 {[%emt 0:00:01]} 41. Bb2 {[%emt 0:00:25]} Be7 {[%emt 0:00:27]} 42. Ne5 {[%emt 0:00:02]} Kc7 43. Nxf7 Kd7 44. Bxf6 Bxf6 45. Ng5 h6 46. Ne4 Bb2 47. Ke3 Ke6 48. Kd3 Kd5 1-0

[Event "Kupreichik Memorial Rapid 2019"]
[Site "Minsk"]
[Date "2019.08.15"]
[Round "3.24"]
[White "Stsepkina, Yauheniya"]
[Black "Zhukovskij, Viktor"]
[Result "0-1"]
[ECO "A50"]
[WhiteElo "1537"]
[BlackElo "2028"]
[Annotator "NA"]
[PlyCount "76"]
[EventDate "2019.08.15"]
[EventType "swiss"]
[EventCountry "BLR"]
[SourceTitle "playchess.com"]
[Source "ChessBase"]
[SourceQuality "1"]
[TimeControl "900+10"]

1. d4 {[%emt 0:00:00]} Nf6 {[%emt 0:00:00]} 2. c4 {[%emt 0:00:00]} c6 {[%emt 0:00:00]} 3. Nf3 {[%emt 0:00:00]} d5 {[%emt 0:00:00]} 4. Qb3 {[%emt 0:00:02]} dxc4 {[%emt 0:00:01]} 5. Qxc4 {[%emt 0:00:01]} Bf5 {[%emt 0:00:01]} 6. Ne5 {[%emt 0:00:17]} e6 {[%emt 0:00:10]} 7. Nc3 {[%emt 0:00:31]} Nbd7 {[%emt 0:00:10]} 8. Nxd7 {[%emt 0:00:08]} Qxd7 {[%emt 0:00:10]} 9. e3 {[%emt 0:01:36]} Be7 {[%emt 0:00:34]} 10. Be2 {[%emt 0:01:16]} O-O {[%emt 0:00:02]} 11. O-O {[%emt 0:00:01]} b5 {[%emt 0:04:20]} 12. Qb3 {[%emt 0:00:02]} a6 {[%emt 0:00:04]} 13. Qd1 {[%emt 0:02:08]} Rfd8 {[%emt 0:00:16]} 14. Bf3 {[%emt 0:00:43]} Rac8 {[%emt 0:00:02]} 15. e4 {[%emt 0:00:18]} Bg6 {[%emt 0:00:02]} 16. Be3 {[%emt 0:00:01]} Bb4 {[%emt 0:05:12]} 17. Qc2 {[%emt 0:02:37]} Nd5 {[%emt 0:02:05]} 18. Nxd5 {[%emt 0:03:57]} cxd5 {[%emt 0:00:10]} 19. Qb3 {[%emt 0:00:02]} Be7 {[%emt 0:00:06]} 20. exd5 {[%emt 0:00:35]} Bc2 {[%emt 0:00:48]} 21. dxe6 {[%emt 0:01:18]} fxe6 {[%emt 0:00:11]} 22. Qc3 {[%emt 0:01:47]} Rxc3 {[%emt 0:00:04]} 23. bxc3 {[%emt 0:00:00]} Rc8 {[%emt 0:00:19]} 24. Bd2 {[%emt 0:00:06]} Ba3 {[%emt 0:00:43]} 25. Rfe1 {[%emt 0:00:37]} Bb2 {[%emt 0:00:12]} 26. Bg4 {[%emt 0:00:03]} Re8 {[%emt 0:00:42]} 27. Rab1 {[%emt 0:00:51]} Bxb1 {[%emt 0:00:04]} 28. Rxb1 {[%emt 0:00:02]} Ba3 {[%emt 0:00:02]} 29. Re1 {[%emt 0:00:21]} Qd5 {[%emt 0:00:07]} 30. f4 {[%emt 0:00:27]} Qxa2 {[%emt 0:00:05]} 31. Re2 {[%emt 0:00:11]} g6 {[%emt 0:00:36]} 32. Bf3 {[%emt 0:00:06]} Kf7 {[%emt 0:00:27]} 33. Bc6 {[%emt 0:00:06]} Re7 {[%emt 0:00:05]} 34. Kf2 {[%emt 0:00:01]} Qc4 {[%emt 0:00:12]} 35. Bf3 {[%emt 0:00:11]} Bb2 {[%emt 0:00:19]} 36. Re3 {[%emt 0:00:01]} b4 {[%emt 0:00:04]} 37. Be2 {[%emt 0:00:10]} Qc6 {[%emt 0:00:08]} 38. Bf3 {[%emt 0:00:21]} Qc7 {[%emt 0:00:01]} 0-1

[Event "Kupreichik Memorial Rapid 2019"]
[Site "Minsk"]
[Date "2019.08.15"]
[Round "3.25"]
[White "Kashtelyan, Valentin"]
[Black "Sarbay, Aleksandr"]
[Result "0-1"]
[ECO "B31"]
[WhiteElo "1488"]
[BlackElo "2115"]
[Annotator "NA"]
[PlyCount "50"]
[EventDate "2019.08.15"]
[EventType "swiss"]
[EventCountry "BLR"]
[SourceTitle "playchess.com"]
[Source "ChessBase"]
[SourceQuality "1"]
[TimeControl "900+10"]

1. e4 {[%emt 0:00:15]} c5 {[%emt 0:00:00]} 2. Nf3 {[%emt 0:00:15]} Nc6 {[%emt 0:00:00]} 3. Bb5 {[%emt 0:00:18]} g6 {[%emt 0:00:07]} 4. Bxc6 dxc6 {[%emt 0:00:00]} 5. c3 {[%emt 0:00:10]} Nf6 {[%emt 0:00:40]} 6. d3 {[%emt 0:00:19]} Bg7 {[%emt 0:00:13]} 7. O-O {[%emt 0:00:11]} O-O {[%emt 0:00:19]} 8. Qe2 {[%emt 0:00:25]} Bg4 {[%emt 0:00:25]} 9. h3 {[%emt 0:00:06]} Bxf3 {[%emt 0:00:07]} 10. Qxf3 {[%emt 0:00:02]} Nd7 {[%emt 0:00:08]} 11. Qe2 {[%emt 0:01:05]} e5 {[%emt 0:01:06]} 12. Na3 {[%emt 0:00:30]} Qe7 {[%emt 0:01:33]} 13. Nc2 {[%emt 0:00:26]} Rad8 {[%emt 0:00:36]} 14. Be3 {[%emt 0:00:13]} Rfe8 {[%emt 0:00:14]} 15. Rad1 {[%emt 0:00:09]} Nf8 {[%emt 0:00:07]} 16. f4 {[%emt 0:00:47]} exf4 {[%emt 0:00:24]} 17. Bxf4 {[%emt 0:00:49]} f5 {[%emt 0:00:53]} 18. Qe3 {[%emt 0:01:39]} c4 {[%emt 0:03:09]} 19. Bg5 {[%emt 0:01:11]} Bf6 {[%emt 0:00:01]} 20. Bxf6 {[%emt 0:00:31]} Qxf6 {[%emt 0:00:01]} 21. d4 {[%emt 0:00:32]} Qf7 {[%emt 0:02:43]} 22. e5 {[%emt 0:00:08]} Ne6 {[%emt 0:00:10]} 23. Qe2 {[%emt 0:01:07]} Ng5 {[%emt 0:00:41]} 24. Ne3 {[%emt 0:00:16]} b5 {[%emt 0:00:14]} 25. Qf3 {[%emt 0:00:41]} Nxf3+ {[%emt 0:00:05]} 0-1

[Event "Kupreichik Memorial Rapid 2019"]
[Site "Minsk"]
[Date "2019.08.15"]
[Round "3.26"]
[White "Nikolaev, Dmitry"]
[Black "Romanovskij, Nikita"]
[Result "0-1"]
[ECO "A05"]
[WhiteElo "1677"]
[BlackElo "1869"]
[Annotator "NA"]
[PlyCount "58"]
[EventDate "2019.08.15"]
[EventType "swiss"]
[EventCountry "BLR"]
[SourceTitle "playchess.com"]
[Source "ChessBase"]
[SourceQuality "1"]
[TimeControl "900+10"]

1. Nf3 {[%emt 0:00:00]} Nf6 {[%emt 0:00:00]} 2. g3 {[%emt 0:00:00]} b6 {[%emt 0:00:11]} 3. Bg2 {[%emt 0:00:00]} Bb7 {[%emt 0:00:02]} 4. O-O {[%emt 0:00:00]} e6 {[%emt 0:00:01]} 5. c4 {[%emt 0:00:01]} Be7 {[%emt 0:00:06]} 6. d3 {[%emt 0:00:11]} O-O {[%emt 0:00:15]} 7. Nc3 {[%emt 0:00:13]} d5 {[%emt 0:00:29]} 8. cxd5 {[%emt 0:01:18]} Nxd5 {[%emt 0:00:12]} 9. Ne4 {[%emt 0:02:33]} Nd7 {[%emt 0:00:55]} 10. a3 {[%emt 0:00:36]} N7f6 {[%emt 0:01:07]} 11. Nxf6+ {[%emt 0:01:04]} Nxf6 {[%emt 0:00:21]} 12. b4 {[%emt 0:00:21]} c5 {[%emt 0:00:55]} 13. bxc5 {[%emt 0:01:37]} Bxc5 {[%emt 0:00:13]} 14. Bg5 {[%emt 0:00:17]} h6 {[%emt 0:01:05]} 15. Bf4 {[%emt 0:00:17]} Qe7 {[%emt 0:00:52]} 16. a4 {[%emt 0:00:41]} Rfd8 {[%emt 0:00:34]} 17. Ne5 {[%emt 0:00:42]} Nd5 {[%emt 0:00:42]} 18. Qb3 {[%emt 0:03:21]} Nxf4 {[%emt 0:00:43]} 19. gxf4 {[%emt 0:00:01]} Bxg2 {[%emt 0:00:34]} 20. Kxg2 {[%emt 0:00:01]} Bd4 {[%emt 0:00:05]} 21. Qa3 {[%emt 0:01:28]} Qb7+ {[%emt 0:00:26]} 22. f3 {[%emt 0:00:30]} Bxa1 {[%emt 0:00:03]} 23. Qxa1 {[%emt 0:00:02]} Rac8 {[%emt 0:00:12]} 24. Rg1 {[%emt 0:00:16]} Qd5 {[%emt 0:00:24]} 25. Kh3 {[%emt 0:00:39]} Qd4 {[%emt 0:00:14]} 26. Qf1 {[%emt 0:00:17]} Qxf4 {[%emt 0:00:12]} 27. Nc4 {[%emt 0:01:37]} Rc5 {[%emt 0:00:22]} 28. Rg4 {[%emt 0:00:29]} Rh5+ {[%emt 0:00:03]} 29. Kg2 {[%emt 0:00:02]} Qxh2# 0-1

[Event "Kupreichik Memorial Rapid 2019"]
[Site "Minsk"]
[Date "2019.08.15"]
[Round "3.27"]
[White "Naumovich, Yaroslav"]
[Black "Karlov, Egor"]
[Result "1-0"]
[ECO "D45"]
[WhiteElo "1868"]
[BlackElo "1728"]
[Annotator "NA"]
[PlyCount "45"]
[EventDate "2019.08.15"]
[EventType "swiss"]
[EventCountry "BLR"]
[SourceTitle "playchess.com"]
[Source "ChessBase"]
[SourceQuality "1"]
[TimeControl "900+10"]

1. Nf3 {[%emt 0:00:00]} d5 {[%emt 0:00:00]} 2. d4 {[%emt 0:00:00]} c6 {[%emt 0:00:00]} 3. c4 {[%emt 0:00:00]} Nf6 {[%emt 0:00:00]} 4. Nc3 {[%emt 0:00:00]} e6 {[%emt 0:00:02]} 5. e3 {[%emt 0:00:03]} Bd6 {[%emt 0:00:02]} 6. Bd3 {[%emt 0:00:02]} O-O {[%emt 0:00:04]} 7. O-O {[%emt 0:00:02]} Nbd7 {[%emt 0:00:02]} 8. e4 {[%emt 0:00:01]} dxe4 {[%emt 0:00:27]} 9. Nxe4 {[%emt 0:00:02]} Nxe4 {[%emt 0:00:01]} 10. Bxe4 {[%emt 0:00:02]} Nf6 {[%emt 0:00:01]} 11. Bc2 {[%emt 0:00:02]} c5 {[%emt 0:00:33]} 12. Qd3 {[%emt 0:01:25]} cxd4 {[%emt 0:00:26]} 13. Bg5 {[%emt 0:00:59]} g6 {[%emt 0:01:17]} 14. Qxd4 {[%emt 0:00:11]} Be7 {[%emt 0:00:15]} 15. Qh4 {[%emt 0:00:13]} Re8 {[%emt 0:02:38]} 16. Rad1 {[%emt 0:01:00]} Nd7 {[%emt 0:00:14]} 17. Ba4 {[%emt 0:01:12]} Bxg5 {[%emt 0:01:19]} 18. Nxg5 {[%emt 0:00:23]} h5 {[%emt 0:00:04]} 19. Qf4 {[%emt 0:04:38]} Qe7 {[%emt 0:00:29]} 20. Ne4 {[%emt 0:01:27]} e5 {[%emt 0:00:37]} 21. Qh6 {[%emt 0:00:54]} Rf8 {[%emt 0:00:40]} 22. Bxd7 {[%emt 0:00:07]} Bxd7 {[%emt 0:00:27]} 23. Rxd7 {[%emt 0:00:03]} 1-0